bitfinex/quotes_ETHUSD_20220227
["timestamp","ask_amount","ask_price","bid_price","bid_amount"]
[1645933046430,0.00553718,2719.8,2719.7,1.0]
[1645933046731,0.6384169,2720.3,2719.7,1.3]
[1645933046929,1.55341232,2720.2,2720.0,1.23719251]
[1645933047128,1.55341232,2720.2,2719.7,1.3]
[1645933047835,0.6384169,2720.3,2719.8,11.26]
[1645933048031,0.6384169,2720.3,2719.7,6.7434]
[1645933048032,1.69e-05,2720.3,2720.2,1.0]
[1645933048231,1.69e-05,2720.3,2720.2,1.83]
[1645933048831,1.69e-05,2720.3,2720.2,2.1994]
[1645933049244,1.69e-05,2720.3,2720.2,13.4594]
[1645933049632,1.69e-05,2720.3,2720.2,14.73770649]
[1645933049901,1.69e-05,2720.3,2720.2,15.28170649]
[1645933050496,1.69e-05,2720.3,2720.2,15.0034]
[1645933050699,1.69e-05,2720.3,2720.2,16.07565521]
[1645933051297,1.69e-05,2720.3,2720.2,15.70625521]
[1645933051497,1.69e-05,2720.3,2720.2,16.07565521]
[1645933051902,1.69e-05,2720.3,2720.2,3.374]
[1645933052098,1.69e-05,2720.3,2720.2,14.634]
[1645933052699,1.69e-05,2720.3,2720.2,3.374]
[1645933052900,1.69e-05,2720.3,2720.2,4.52495099]
[1645933053101,1.69e-05,2720.3,2720.2,2.374]
[1645933053301,1.69e-05,2720.3,2720.2,3.374]
[1645933053500,1.69e-05,2720.3,2720.2,2.374]
[1645933053734,1.69e-05,2720.3,2720.2,3.374]
[1645933054036,1.69e-05,2720.3,2720.2,13.634]
[1645933054235,1.69e-05,2720.3,2720.2,14.634]
[1645933054636,1.69e-05,2720.3,2720.2,15.71083644]
[1645933054839,1.69e-05,2720.3,2720.2,16.08023644]
[1645933055341,1.69e-05,2720.3,2720.2,15.0034]
[1645933056955,1.69e-05,2720.3,2720.2,20.0034]
[1645933057244,1.69e-05,2720.3,2720.2,21.20073649]
[1645933057483,0.00199663,2721.7,2720.6,11.6294]
[1645933057684,0.00199663,2721.7,2721.4,1.191327]
[1645933057888,0.75702842,2721.8,2721.6,1.0]
[1645933058083,0.00199663,2721.7,2721.4,11.26]
[1645933058282,0.75702842,2721.8,2721.4,12.56]
[1645933058483,0.75702842,2721.8,2721.4,1.3]
[1645933058682,0.75702842,2721.8,2721.7,1.0]
[1645933069243,0.75702842,2721.8,2721.4,1.32675927]
[1645933069244,0.75702842,2721.8,2721.4,0.3]
[1645933069445,0.75702842,2721.8,2721.3,0.3]
[1645933069847,0.00580473,2721.7,2721.2,1.3]
[1645933070248,0.00580473,2721.7,2721.3,1.16535964]
[1645933070448,0.00580473,2721.7,2721.4,1.0]
[1645933070853,0.75702842,2721.8,2721.4,1.3]
[1645933071058,0.00580476,2721.7,2721.4,1.3]
[1645933072152,0.75702842,2721.8,2721.4,1.3]
[1645933072392,0.00580476,2721.7,2721.4,1.3]
[1645933072982,0.00580476,2721.7,2721.3,1.0]
[1645933073185,0.75702842,2721.8,2721.6,1.0]
[1645933073485,0.00580476,2721.7,2721.6,1.0]
[1645933074483,0.75702842,2721.8,2721.6,1.0]
[1645933074683,0.76283312,2721.8,2721.6,1.0]
[1645933075688,0.75702842,2721.8,2721.6,1.0]
[1645933075888,0.76283309,2721.8,2721.6,0.3]
[1645933076132,0.76283309,2721.8,2721.7,1.0]
[1645933076734,0.76283309,2721.8,2721.7,2.12072149]
[1645933076936,0.14889663,2722.3,2721.7,2.12072149]
[1645933077135,0.00580464,2721.9,2721.7,2.12072149]
[1645933078136,0.00199663,2722.3,2721.7,2.12072149]
[1645933078335,0.00580461,2721.9,2721.7,2.12072149]
[1645933079336,0.00199663,2722.3,2721.7,2.12072149]
[1645933079539,0.00580461,2721.9,2721.7,2.12072149]
[1645933079988,0.00580461,2721.9,2721.7,1.12072149]
[1645933080396,0.00199663,2722.3,2721.8,1.0]
[1645933080589,3.5687,2722.4,2721.8,1.0]
[1645933080590,2.0,2722.4,2721.8,1.3]
[1645933080792,0.00580461,2721.9,2721.8,1.3]
[1645933081392,0.00439445,2721.9,2721.8,1.3]
[1645933081794,0.00199663,2722.3,2721.8,1.3]
[1645933081991,2.0,2722.4,2721.8,1.3]
[1645933082996,1.55239052,2722.3,2721.8,1.3]
[1645933083193,2.0,2722.4,2721.8,1.3]
[1645933084432,0.00409766,2722.2,2721.8,1.3]
[1645933085240,2.0,2722.4,2721.8,1.3]
[1645933085441,0.00580448,2722.1,2721.8,1.3]
[1645933086441,0.00199663,2722.3,2721.8,1.3]
[1645933086646,0.00549867,2722.1,2721.8,1.3]
[1645933087681,0.00199663,2722.3,2721.8,1.3]
[1645933087883,0.00549867,2722.1,2721.8,1.3]
[1645933088682,0.00549867,2722.1,2721.1,1.4173]
[1645933088683,0.00549867,2722.1,2721.3,1.0]
[1645933088882,3.87139663,2722.3,2721.4,1.0]
[1645933088883,1.55251239,2722.0,2721.4,1.0]
[1645933089082,4.50199663,2722.1,2721.4,1.0]
[1645933089282,1.55256164,2722.0,2721.4,1.0]
[1645933089883,1.07963998,2721.7,2721.5,1.0]
[1645933090285,1.07963998,2721.7,2721.5,1.3]
[1645933090685,1.07963998,2721.7,2721.5,1.0]
[1645933090898,6.05267187,2721.6,2720.9,3.2136]
[1645933091137,1.65624744,2721.4,2720.7,2.7425]
[1645933091343,5.15624744,2721.4,2720.5,1.2231]
[1645933091540,5.15624744,2721.4,2720.3,3.1498]
[1645933091742,1.32443047,2721.2,2720.7,1.0]
[1645933092236,1.32443047,2721.2,2720.7,1.3]
[1645933092639,2.10823047,2721.2,2720.7,1.3]
[1645933092839,5.60823047,2721.2,2720.7,1.3]
[1645933093037,1.55289139,2721.1,2720.7,1.3]
[1645933096305,3.5,2721.0,2720.7,1.3]
[1645933096503,1.3545,2721.1,2720.7,1.3]
[1645933096707,1.3545,2721.1,2720.7,1.0]
[1645933096708,1.55294159,2721.0,2720.7,1.0]
[1645933097505,1.55294159,2721.0,2720.3,5.142]
[1645933097706,1.55294159,2721.0,2720.9,1.0]
[1645933097905,1.32443047,2721.2,2720.9,1.0]
[1645933098107,1.55287392,2721.1,2720.3,0.3]
[1645933098309,1.55287392,2721.1,2721.0,1.0]
[1645933098507,1.55287392,2721.1,2720.6,1.0]
[1645933098733,1.55287392,2721.1,2720.6,0.3]
[1645933098932,1.55287392,2721.1,2720.7,1.0]
[1645933099540,0.3694,2720.9,2720.0,0.25]
[1645933099734,0.3694,2720.7,2719.6,1.0]
[1645933099937,0.3694,2720.5,2719.6,1.0]
[1645933100141,0.3694,2720.5,2719.6,0.01923427]
[1645933100142,0.3694,2720.3,2719.6,0.01923427]
[1645933100436,1.30876677,2720.0,2719.6,1.01923427]
[1645933100637,4.0163,2720.2,2719.6,1.01923427]
[1645933100838,0.5163,2720.2,2719.5,0.00096]
[1645933101035,3.6469,2720.2,2719.7,1.0]
[1645933101436,0.1469,2720.2,2719.7,1.0]
[1645933101638,3.6469,2720.2,2719.7,1.0]
[1645933101837,1.16258653,2720.0,2719.7,1.0]
[1645933102483,3.6469,2720.2,2719.7,1.0]
[1645933102685,3.6469,2720.2,2719.7,0.54]
[1645933103085,1.0,2720.0,2719.7,0.54]
[1645933103686,2.25269224,2720.0,2719.7,0.54]
[1645933104085,1.0,2720.0,2719.7,0.54]
[1645933104486,1.0,2720.0,2719.5,0.00096]
[1645933104687,0.1469,2720.2,2719.9,0.54]
[1645933104890,1.1469,2720.2,2719.9,0.54]
[1645933105090,2.49509451,2720.2,2719.9,0.54]
[1645933105291,5.84819451,2720.2,2719.9,0.54]
[1645933105490,5.84819451,2720.2,2719.9,0.08]
[1645933105893,5.84819451,2720.2,2720.0,0.08]
[1645933106544,4.5,2720.2,2720.0,0.08]
[1645933106847,1.0,2720.2,2720.1,0.08]
[1645933107044,1.0,2720.2,2720.1,11.87]
[1645933107243,1.0,2720.2,2720.1,12.17]
[1645933107443,1.0,2720.2,2720.1,13.17]
[1645933107642,1.03623765,2721.0,2720.1,1.91]
[1645933107843,5.3863,2721.1,2720.1,13.09]
[1645933108043,5.3863,2721.1,2720.1,12.09]
[1645933108242,5.3863,2721.1,2721.0,0.08]
[1645933108443,6.93938286,2721.1,2721.0,0.08]
[1645933108742,6.93935095,2721.1,2720.1,12.71]
[1645933108942,5.3863,2721.1,2720.1,12.56]
[1645933109148,6.51171162,2721.1,2721.0,1.0]
[1645933109345,3.0,2721.1,2721.0,1.0]
[1645933109985,4.55305376,2721.1,2721.0,1.0]
[1645933110187,3.0,2721.1,2721.0,1.0]
[1645933110585,4.55307314,2721.1,2721.0,1.0]
[1645933110988,0.65660966,2720.9,2720.4,1.16329317]
[1645933111187,0.65660966,2720.9,2720.4,1.46329317]
[1645933111388,1.0,2720.8,2720.4,1.46329317]
[1645933111593,0.65660966,2720.9,2720.7,0.54]
[1645933111792,1.0,2720.8,2720.7,0.84]
[1645933112590,0.65660966,2720.9,2720.7,0.84]
[1645933112887,0.65660966,2720.9,2720.8,0.54]
[1645933113090,0.65660966,2720.9,2720.8,1.78588184]
[1645933114136,0.65660966,2720.9,2720.8,0.54]
[1645933115245,4.15660966,2720.9,2720.0,2.7442]
[1645933115447,3.5,2720.8,2719.9,3.2418]
[1645933115847,1.0,2720.6,2719.9,3.2418]
[1645933116049,3.5,2720.5,2719.7,0.25]
[1645933116247,1.03497476,2720.4,2719.7,1.07708873]
[1645933116450,1.03497476,2720.4,2719.6,0.5592201]
[1645933116451,1.0,2720.3,2719.6,0.5592201]
[1645933116646,1.8483,2720.3,2719.5,0.00096]
[1645933116854,1.8483,2720.3,2720.2,0.54]
[1645933117251,1.8483,2720.3,2719.6,0.01922015]
[1645933117492,3.5,2720.2,2719.6,0.55922015]
[1645933117700,3.5,2720.2,2719.6,0.54]
[1645933117701,1.0,2719.9,2719.6,0.54]
[1645933117896,1.1053,2720.3,2719.6,0.54]
[1645933118096,1.0,2719.8,2719.6,0.54]
[1645933118696,1.0,2719.8,2719.7,0.54]
[1645933121941,1.0,2719.8,2719.3,0.86577798]
[1645933122144,1.0,2719.8,2719.3,0.3]
[1645933122337,1.0,2719.8,2719.7,1.0]
[1645933126597,1.0,2719.8,2719.7,0.99893003]
[1645933144439,2.55367756,2719.8,2719.7,0.99893003]
[1645933144839,1.55367756,2719.8,2719.7,0.99893003]
[1645933145042,2.55367756,2719.8,2719.7,0.99893003]
[1645933146043,1.55368802,2719.8,2719.4,0.0047128]
[1645933146243,1.0,2719.8,2719.4,0.0047128]
[1645933146443,1.0,2719.8,2719.7,0.9976]
[1645933147889,1.0,2719.9,2719.7,0.9976]
[1645933148085,0.9987564,2719.9,2719.7,0.9976]
[1645933148283,0.9987564,2719.9,2719.6,1.1967582]
[1645933148484,2.3092,2720.1,2719.8,0.9976]
[1645933148685,1.55363473,2720.0,2719.8,0.9976]
[1645933148887,1.55363473,2719.9,2719.8,0.9976]
[1645933149086,1.55363473,2719.9,2719.6,1.1967582]
[1645933149291,0.9976,2719.9,2719.8,0.9976]
[1645933149489,1.55363803,2719.9,2719.8,0.9976]
[1645933149891,1.55363803,2720.2,2719.8,0.9976]
[1645933150092,3.5,2720.1,2719.8,0.9976]
[1645933150292,1.55363803,2720.0,2719.8,0.9976]
[1645933150499,0.9976,2719.9,2719.4,0.00480734]
[1645933150694,0.9976,2719.9,2719.8,0.9976]
[1645933150897,2.55124938,2719.9,2719.8,0.9976]
[1645933152152,0.9976,2719.9,2719.8,0.9976]
[1645933153749,3.5,2720.3,2719.8,0.9976]
[1645933153949,1.55358479,2720.2,2719.8,0.9976]
[1645933154148,1.55358479,2720.2,2720.0,0.9976]
[1645933159137,3.5,2720.1,2720.0,0.9976]
[1645933159341,5.05358479,2720.1,2720.0,0.9976]
[1645933159544,1.55358479,2720.1,2720.0,0.9976]
[1645933159746,5.05358479,2720.1,2720.0,0.9976]
[1645933160146,3.5,2720.1,2720.0,0.9976]
[1645933160347,1.55359754,2720.1,2720.0,0.9976]
[1645933160646,1.55359754,2720.2,2720.0,0.9976]
[1645933160856,1.55359754,2720.1,2720.0,0.9976]
[1645933161048,1.55359754,2720.2,2720.0,0.9976]
[1645933161249,0.9976,2720.1,2720.0,0.9976]
[1645933161448,2.55119754,2720.1,2720.0,0.9976]
[1645933167640,0.65962705,2719.9,2719.4,0.00479528]
[1645933167841,1.55359754,2719.8,2719.4,0.00479528]
[1645933168040,1.55359754,2719.8,2719.7,1.0]
[1645933170087,1.55359754,2719.8,2719.7,1.3694]
[1645933170288,0.65962705,2719.9,2719.7,13.4594]
[1645933170489,0.65962705,2719.9,2719.7,13.0034]
[1645933170687,0.65962705,2719.9,2719.7,13.4594]
[1645933170887,0.65962705,2719.9,2719.8,1.3694]
[1645933171089,0.65962705,2719.9,2719.8,1.8994]
[1645933171489,0.65962705,2719.9,2719.8,2.4434]
[1645933171888,2.9976,2720.8,2719.8,13.7034]
[1645933172089,0.00554189,2720.3,2719.9,11.6294]
[1645933172289,0.00554189,2720.3,2720.1,11.6294]
[1645933172488,0.00554189,2720.3,2720.2,12.1594]
[1645933172687,0.00554189,2720.3,2720.2,12.6294]
[1645933172887,0.65660966,2720.9,2720.2,15.82832612]
[1645933173089,1.55309997,2720.8,2720.3,12.54856]
[1645933173289,0.0055424,2720.4,2720.3,13.54856]
[1645933173491,0.0055424,2720.4,2720.3,14.54856]
[1645933174139,0.65660966,2720.9,2720.7,1.13133491]
[1645933174339,1.55308051,2720.8,2720.7,1.43133491]
[1645933174839,0.65660966,2720.9,2720.7,1.43133491]
[1645933175748,0.66071634,2720.9,2720.7,1.43133491]
[1645933176548,0.65660966,2720.9,2720.7,1.43133491]
[1645933176745,0.66071634,2720.9,2720.7,1.43133491]
[1645933177792,0.65660966,2720.9,2720.7,1.43133491]
[1645933177992,0.66242035,2720.9,2720.7,0.3]
[1645933178192,0.66242035,2720.9,2720.6,0.6]
[1645933178392,0.66242035,2720.9,2720.4,1.83]
[1645933178597,0.66242035,2720.9,2720.8,1.0]
[1645933179096,0.66242035,2720.9,2720.8,1.3]
[1645933179097,0.65660966,2720.9,2720.8,1.3]
[1645933179493,1.78602156,2720.9,2720.8,1.3]
[1645933180496,3.33905076,2720.9,2720.8,1.3]
[1645933180696,1.78602156,2720.9,2720.8,1.3]
[1645933180996,1.78602156,2720.9,2720.8,1.0]
[1645933181241,1.78602156,2720.9,2720.8,1.3]
[1645933182248,0.65660966,2720.9,2720.8,1.3]
[1645933183345,0.65660966,2720.9,2720.8,2.45236899]
[1645933185193,0.65660966,2720.9,2720.8,1.3]
[1645933186196,0.65660966,2720.9,2720.8,12.56]
[1645933186394,0.65660966,2720.9,2720.8,13.09]
[1645933186698,0.65660966,2720.9,2720.8,14.09]
[1645933187294,0.65660966,2720.9,2720.8,15.17126198]
[1645933188297,0.65660966,2720.9,2720.8,15.54066198]
[1645933189158,0.65660966,2720.9,2720.8,16.08466198]
[1645933189759,0.65660966,2720.9,2720.8,15.0034]
[1645933190162,0.65660966,2720.9,2720.8,14.09]
[1645933191160,0.65660966,2720.9,2720.8,12.79]
[1645933191363,0.65660966,2720.9,2720.8,1.0]
[1645933192395,0.65660966,2720.9,2720.8,1.3]
[1645933192589,0.65568685,2720.9,2720.8,1.3]
[1645933194598,0.65568685,2720.9,2720.8,1.0]
[1645933196137,0.65568685,2720.9,2720.8,1.3]
[1645933203205,0.65568685,2720.9,2720.8,1.29840121]
[1645933207893,0.65568685,2720.9,2720.8,0.29840121]
[1645933208290,1.21250836,2720.9,2720.8,0.3]
[1645933208490,1.21250836,2720.9,2720.7,0.3]
[1645933208793,2.52767153,2720.9,2720.3,12.60804314]
[1645933209191,1.21250836,2720.9,2720.5,1.0]
[1645933209393,1.21768297,2720.9,2720.5,1.0]
[1645933209591,1.21768297,2720.9,2720.7,1.0]
[1645933211938,1.21771776,2720.9,2720.7,1.0]
[1645933212937,1.22291602,2720.9,2720.7,1.0]
[1645933213139,1.21770662,2720.9,2720.7,1.0]
[1645933213843,1.5530341,2720.8,2720.7,1.0]
[1645933214046,0.3694,2720.7,2719.9,1.4876]
[1645933214243,1.5530341,2720.6,2720.2,1.0]
[1645933214441,1.367,2720.5,2719.8,3.147]
[1645933214642,1.367,2720.5,2719.7,0.00096]
[1645933214643,1.9224341,2720.4,2719.7,0.00096]
[1645933214893,0.9976,2720.0,2719.7,0.00096]
[1645933215095,1.02923275,2719.9,2719.4,0.00479751]
[1645933215298,1.02923275,2719.9,2719.8,1.0]
[1645933215692,2.4191,2720.0,2719.8,1.0]
[1645933216495,1.8501,2720.0,2719.8,1.0]
[1645933216699,1.8501,2720.0,2719.8,0.95]
[1645933217097,2.40545129,2720.0,2719.9,0.9496]
[1645933217496,3.95885445,2720.0,2719.9,0.9496]
[1645933217698,2.40545129,2720.0,2719.9,0.9496]
[1645933217900,3.95886312,2720.0,2719.9,0.9496]
[1645933218296,2.40545129,2720.0,2719.9,0.9496]
[1645933230309,3.95898157,2720.0,2719.9,0.9496]
[1645933230505,2.40545129,2720.0,2719.9,0.9496]
[1645933235158,1.40785129,2720.0,2719.9,0.9496]
[1645933235360,0.55535129,2720.0,2719.9,0.9496]
[1645933237796,1.31996149,2720.2,2719.9,0.9496]
[1645933238096,1.31996149,2720.2,2720.0,0.9496]
[1645933238097,1.55351097,2720.1,2720.0,0.9496]
[1645933238300,0.70747214,2719.9,2719.4,0.00474743]
[1645933238702,1.70507214,2719.9,2719.8,1.0]
[1645933238899,1.20507214,2719.9,2719.8,1.0]
[1645933248498,1.20507214,2719.9,2719.8,1.3]
[1645933248741,1.20507214,2719.9,2719.8,1.0]
[1645933254697,1.20507214,2719.9,2719.8,1.3]
[1645933255299,1.20507214,2719.9,2719.8,2.6025673]
[1645933255698,1.20507214,2719.9,2719.8,3.6025673]
[1645933255897,1.20507214,2719.9,2719.8,2.6025673]
[1645933256142,1.20507214,2719.9,2719.8,2.3025673]
[1645933258550,1.20507214,2719.9,2719.8,1.0]
[1645933260206,2.75845731,2719.9,2719.8,1.0]
[1645933260600,2.75845731,2719.9,2719.4,0.00576266]
[1645933260806,1.55338517,2719.8,2719.4,1.00096]
[1645933261002,1.55338517,2719.8,2719.6,1.0]
[1645933261501,1.20507214,2719.9,2719.6,1.3]
[1645933261701,1.20507214,2719.9,2719.6,0.3]
[1645933261702,1.55344694,2719.8,2719.6,0.3]
[1645933261904,1.20507214,2719.9,2719.7,1.0]
[1645933262902,1.20372265,2719.9,2719.7,1.0]
[1645933264748,1.05372265,2719.9,2719.7,1.0]
[1645933269807,1.05372265,2719.9,2719.8,1.0]
[1645933270712,2.60711752,2719.9,2719.8,1.0]
[1645933270910,2.60711752,2719.9,2719.8,0.54]
[1645933273855,2.60711752,2719.9,2719.8,0.08]
[1645933275414,2.60711752,2719.9,2719.4,0.08400265]
[1645933275611,1.55339487,2719.8,2719.4,0.08400265]
[1645933275815,1.55339487,2719.8,2719.7,0.0792]
[1645933276812,1.55339487,2719.8,2719.1,1.60558401]
[1645933277213,1.55339487,2719.8,2719.7,1.0]
[1645933278647,2.55099487,2719.8,2719.7,1.0]
[1645933279853,2.55099487,2719.8,2719.7,0.54]
[1645933280256,0.9976,2719.8,2719.7,0.54]
[1645933280459,0.9976,2719.8,2719.7,0.84]
[1645933281056,0.9976,2719.8,2719.7,2.02994208]
[1645933281257,1.39038361,2721.2,2719.7,2.02994208]
[1645933281258,0.1469,2720.7,2719.7,17.68934208]
[1645933281458,2.00199663,2720.8,2719.8,4.49855593]
[1645933281459,1.361e-05,2719.9,2719.8,4.49855593]
[1645933281668,2.00199663,2720.8,2719.9,11.63018639]
[1645933281669,0.00199663,2720.8,2719.9,11.63018639]
[1645933281854,0.69797374,2721.4,2720.7,0.54]
[1645933281855,1.55499142,2721.1,2720.7,0.54]
[1645933282056,2.1469,2721.6,2720.7,1.07]
[1645933282057,1.55299479,2721.0,2720.7,1.07]
[1645933282258,0.00199663,2721.5,2720.8,3.5]
[1645933282511,1.55279363,2721.6,2720.9,12.15938639]
[1645933282712,1.55279363,2721.5,2720.9,1.1994]
[1645933282909,4.23191816,2722.1,2721.0,0.9134]
[1645933282910,0.00199663,2721.8,2721.0,0.9134]
[1645933283115,3.06017374,2722.2,2721.0,0.9134]
[1645933283116,1.55453784,2722.0,2721.1,0.53]
[1645933283308,1.55254121,2721.9,2721.1,0.53]
[1645933283509,1.0,2721.4,2721.1,0.83]
[1645933284910,1.0,2721.4,2721.2,1.1928514]
[1645933285117,1.00373761,2721.4,2721.2,1.1928514]
[1645933285314,1.00373761,2721.4,2721.2,1.4928514]
[1645933285912,1.0,2721.4,2721.2,1.4928514]
[1645933286150,1.00542998,2721.4,2721.2,1.4928514]
[1645933287150,1.0,2721.4,2721.2,1.4928514]
[1645933287354,1.00550568,2721.4,2721.2,1.4928514]
[1645933287750,1.00550568,2721.4,2721.2,0.3]
[1645933288153,1.00550568,2721.4,2721.1,0.3]
[1645933288457,1.0,2721.4,2721.3,0.84]
[1645933288654,1.00550568,2721.4,2721.3,0.84]
[1645933289555,1.0,2721.4,2721.3,0.84]
[1645933290206,1.0,2721.4,2721.3,0.54]
[1645933290405,1.0,2721.4,2720.5,0.6909]
[1645933290604,0.00199663,2721.3,2720.5,0.6909]
[1645933290904,0.37139663,2721.3,2720.5,0.544]
[1645933291107,1.0054464,2721.1,2720.5,0.544]
[1645933291402,1.0054464,2721.1,2720.5,1.084]
[1645933292106,1.0,2721.1,2720.5,1.084]
[1645933292404,1.0,2721.1,2720.5,0.84]
[1645933292804,3.5,2721.0,2720.5,0.54]
[1645933293006,3.5,2721.0,2719.9,0.1477]
[1645933293007,1.0,2720.8,2719.9,0.1477]
[1645933293204,3.8694,2720.7,2719.9,0.1477]
[1645933293405,0.3694,2720.7,2720.1,0.54]
[1645933293675,1.0,2720.5,2720.1,0.54]
[1645933293871,0.3694,2720.7,2720.1,0.54]
[1645933294070,1.58190325,2720.5,2719.9,0.0008]
[1645933294271,1.0,2720.3,2719.9,0.0008]
[1645933294471,1.0,2720.3,2720.2,0.54]
[1645933294670,1.00581763,2720.3,2720.2,0.54]
[1645933295674,1.0,2720.5,2720.2,0.54]
[1645933295874,0.0058176,2720.4,2720.2,0.54]
[1645933296875,2.41705753,2720.5,2720.2,0.54]
[1645933297074,0.00581757,2720.4,2720.2,0.54]
[1645933298104,1.0,2720.5,2720.2,0.54]
[1645933298309,0.00581757,2720.4,2720.2,0.54]
[1645933298910,1.03336717,2720.4,2720.2,0.54]
[1645933299306,1.0275496,2720.4,2720.2,0.54]
[1645933299505,1.03336717,2720.4,2720.2,0.54]
[1645933300510,1.0275496,2720.4,2720.2,0.54]
[1645933300710,1.03336717,2720.4,2720.2,0.54]
[1645933301561,1.0275496,2720.4,2720.2,0.54]
[1645933301754,0.00581757,2720.4,2720.2,0.54]
[1645933301954,0.00499743,2720.4,2720.2,0.54]
[1645933302756,1.0,2720.5,2720.2,0.54]
[1645933303154,1.0,2720.5,2720.2,0.49]
[1645933303355,1.28999842,2720.3,2720.2,0.49]
[1645933303757,1.0,2720.5,2720.2,0.49]
[1645933304360,0.37139663,2720.8,2719.9,0.0008]
[1645933304361,3.5,2720.4,2719.9,0.0008]
[1645933304562,1.0,2720.2,2719.9,0.0008]
[1645933304760,3.5,2720.4,2719.9,0.0008]
[1645933305009,0.1469,2720.5,2719.9,0.4904]
[1645933305209,0.1469,2720.5,2720.1,0.4896]
[1645933305508,2.36337439,2720.2,2720.1,0.4896]
[1645933305810,1.0,2720.2,2720.1,0.4896]
[1645933306813,1.0,2720.2,2720.1,0.0296]
[1645933307808,4.5,2720.2,2719.6,0.00096]
[1645933308014,4.5,2720.2,2718.9,3.04957979]
[1645933308015,0.3694,2720.0,2719.3,0.00661613]
[1645933308209,0.3694,2720.0,2719.3,0.00565613]
[1645933308210,3.8694,2719.9,2719.3,0.00565613]
[1645933308409,1.0,2719.4,2719.3,0.00565613]
[1645933308670,0.3993,2719.8,2719.3,0.00565613]
[1645933308869,1.0,2719.5,2719.0,1.15302079]
[1645933309069,1.0,2719.5,2719.2,1.00565628]
[1645933309272,1.10066104,2719.6,2719.2,1.00565628]
[1645933309473,1.0,2719.4,2719.2,1.00565628]
[1645933309868,1.0,2719.4,2719.2,0.00565628]
[1645933310073,1.0,2719.4,2719.2,0.54]
[1645933310373,1.0,2719.4,2719.3,0.54]
[1645933312512,6.21128965,2720.5,2719.3,0.54]
[1645933312513,1.0,2719.7,2719.3,1.384]
[1645933312718,1.0,2719.7,2719.3,1.914]
[1645933312914,1.0,2719.7,2719.3,1.454]
[1645933313915,1.0,2719.7,2719.3,1.45965613]
[1645933314315,1.0,2719.7,2719.3,1.75965613]
[1645933314720,1.0,2719.7,2719.4,1.02910839]
[1645933315915,1.0,2719.7,2719.4,0.56910839]
[1645933316759,2.2271,2720.1,2719.4,0.56910839]
[1645933316958,3.2271,2720.1,2719.6,0.38]
[1645933317159,1.0,2720.1,2719.6,0.38]
[1645933318759,1.0,2720.0,2719.6,0.38]
[1645933320703,1.0,2720.0,2719.9,0.38]
[1645933322509,2.26729072,2720.0,2719.9,0.38]
[1645933323006,1.0,2720.0,2719.9,0.38]
[1645933329505,0.0054532,2720.2,2719.9,0.38]
[1645933329907,0.0054532,2720.2,2719.4,0.00096]
[1645933329908,0.3748532,2720.2,2719.4,0.00096]
[1645933330123,3.6469,2720.1,2719.3,0.00545507]
[1645933330315,1.92303598,2720.0,2719.3,0.00545507]
[1645933330511,1.06128149,2719.4,2719.1,0.00096]
[1645933330710,1.06128149,2719.4,2719.3,0.00545486]
[1645933330910,1.06128149,2719.4,2719.3,0.00453595]
[1645933331568,1.1564,2719.8,2719.3,1.0]
[1645933331767,1.0,2719.4,2718.8,0.00096]
[1645933331966,1.0,2719.4,2719.3,1.0]
[1645933334768,1.22765285,2720.0,2719.3,1.0]
[1645933335008,1.22765285,2720.0,2719.3,1.00096]
[1645933335009,1.0,2719.9,2719.3,1.00096]
[1645933335208,1.0,2719.9,2719.3,1.0]
[1645933335410,1.0,2719.9,2719.8,1.0]
[1645933335607,1.37455327,2720.0,2719.8,1.0]
[1645933335808,0.15235327,2720.0,2719.8,1.0]
[1645933336009,1.55355912,2719.9,2719.8,1.0]
[1645933336409,1.55355912,2719.9,2719.4,0.00096]
[1645933336607,1.55355912,2719.9,2719.1,0.3]
[1645933336608,2.55355912,2719.9,2719.8,1.0]
[1645933337009,2.55355912,2719.9,2719.2,0.20641492]
[1645933337209,1.17963364,2719.6,2719.1,1.23291337]
[1645933337409,1.17963364,2719.6,2719.0,0.544]
[1645933338208,1.17963364,2719.6,2719.0,0.844]
[1645933339957,0.3694,2719.8,2719.0,0.844]
[1645933340156,1.55364577,2719.7,2719.0,0.844]
[1645933340358,0.00412577,2719.7,2719.0,0.844]
[1645933340757,0.00412577,2719.7,2719.0,0.544]
[1645933341158,1.31970577,2719.7,2719.0,0.544]
[1645933341558,1.32552339,2719.7,2719.2,0.00564045]
[1645933342414,1.31970577,2719.7,2719.0,0.54496]
[1645933342608,0.00581777,2719.7,2719.2,0.00564045]
[1645933343606,0.3694,2719.8,2719.0,0.54496]
[1645933343807,1.55946231,2719.7,2719.2,0.00564045]
[1645933344009,1.55364454,2719.6,2719.2,0.00564045]
[1645933344409,0.00581777,2719.7,2719.2,0.00564045]
[1645933344810,1.55364108,2719.6,2719.0,0.54496]
[1645933345018,0.00581777,2719.7,2719.2,0.00564045]
[1645933345213,1.43574885,2719.6,2719.2,0.00564045]
[1645933345716,1.0,2719.3,2719.2,0.00564045]
[1645933346149,1.0,2719.3,2719.0,0.544]
[1645933346349,1.0,2719.3,2719.2,0.00564045]
[1645933347355,1.0,2719.3,2718.8,0.00096]
[1645933347555,1.0,2719.3,2719.1,0.00564055]
[1645933348358,1.0,2719.3,2718.7,0.00096]
[1645933348555,1.0,2719.3,2718.6,3.37389994]
[1645933348756,1.0,2719.3,2719.1,0.00564065]
[1645933349758,1.0,2719.3,2718.7,0.00096]
[1645933350014,1.0,2719.3,2719.1,0.00564065]
[1645933350814,0.3694,2719.5,2718.7,0.567526]
[1645933350815,1.0,2719.2,2718.8,0.00096]
[1645933351019,1.0,2719.2,2718.7,0.844]